bitfinex-derivatives/quotes_SOLF0:USTF0_20250703
["timestamp","ask_amount","ask_price","bid_price","bid_amount"]
[1751561324198,6.66218016,151.07,151.05,6.6175]
[1751561324694,0.04528016,151.07,151.05,6.6175]
[1751561326702,5.49151298,151.06,151.03,48.1]
[1751561326901,4.95728277,151.07,151.03,48.1]
[1751561327106,5.49172357,151.06,151.03,48.1]
[1751561327310,4.95728277,151.07,151.03,48.1]
[1751561327609,0.04528016,151.07,151.03,48.1]
[1751561328305,0.04528016,151.07,151.06,6.6171]
[1751561328507,5.5314606,151.07,151.06,6.6171]
[1751561330410,5.5314606,151.07,151.05,6.6173]
[1751561330611,0.04528016,151.07,151.05,6.6173]
[1751561332210,6.66198016,151.07,151.04,6.6177]
[1751561332812,5.48416375,151.06,151.04,6.6177]
[1751561333003,6.66198016,151.07,151.04,6.6177]
[1751561333207,5.48540927,151.06,151.04,6.6177]
[1751561333408,6.66198016,151.07,151.04,6.6177]
[1751561333614,6.66198016,151.07,151.03,48.1]
[1751561333615,5.48540922,151.06,151.05,6.6175]
[1751561334109,6.66198016,151.07,151.05,6.6175]
[1751561335801,5.48711136,151.06,151.05,6.6175]
[1751561337907,5.48711136,151.06,151.04,0.04672459]
[1751561338108,5.48711136,151.05,151.04,0.04672459]
[1751561338313,10.39911397,151.05,151.04,0.04672459]
[1751561338703,6.6186,151.03,150.99,48.12]
[1751561339415,6.6186,151.03,151.0,6.6196]
[1751561339712,6.6186,151.03,150.99,48.12]
[1751561339910,6.6642248,151.03,150.99,48.12]
[1751561340114,6.6642248,151.03,151.0,6.6194]
[1751561340308,0.0456248,151.03,150.99,48.12]
[1751561340711,0.0456248,151.03,151.01,6.619]
[1751561340910,6.6642248,151.03,150.99,48.12]
[1751561341106,6.6642248,151.03,151.0,6.6193]
[1751561342221,6.6642248,151.03,151.01,6.6192]
[1751561343723,0.0456248,151.03,151.01,6.6192]
[1751561343923,0.0456248,151.03,150.99,48.12]
[1751561343924,6.11061626,151.08,151.02,4.91200261]
[1751561344226,5.46295864,151.07,151.02,4.91200261]
[1751561344415,6.617,151.07,151.04,6.6177]
[1751561344615,5.46324063,151.06,151.02,4.91200261]
[1751561344825,12.08104063,151.05,151.02,6.6186]
[1751561345022,6.6178,151.05,151.02,6.6186]
[1751561347226,6.6178,151.05,151.0,4.91200261]
[1751561348824,6.6178,151.05,151.02,6.6186]
[1751561349028,6.618,151.04,151.02,6.6186]
[1751561349324,6.618,151.04,151.02,6.66610579]
[1751561350021,6.618,151.04,151.02,0.04750579]
[1751561350022,12.09030304,151.03,151.02,0.04750579]
[1751561352627,6.6182,151.04,151.02,0.04750579]
[1751561353322,0.04226931,151.06,151.02,0.04750579]
[1751561353523,0.04226931,151.06,151.02,4.9595084]
[1751561353927,0.04226931,151.06,151.04,6.6179]
[1751561360530,6.65936931,151.06,151.04,6.6179]
[1751561360729,10.39960853,151.05,151.02,0.04750579]
[1751561360924,5.48760592,151.04,151.02,0.04750579]
[1751561361120,12.10600592,151.03,151.02,0.04750579]
[1751561362024,5.48760592,151.03,151.02,0.04750579]
[1751561362229,4.91200261,151.05,151.02,0.04750579]
[1751561362427,5.49400887,151.04,151.02,0.04750579]
[1751561362631,6.6184,151.03,151.02,0.04750579]
[1751561363233,12.11281794,151.03,151.02,0.04750579]
[1751561363427,6.6184,151.03,151.02,0.04750579]
[1751561363728,6.6182,151.04,151.02,0.04750579]
[1751561363929,4.95427192,151.06,151.02,0.04750579]
[1751561364228,5.49434069,151.05,151.02,0.04750579]
[1751561364532,0.04226931,151.06,151.02,0.04750579]
[1751561365732,0.04226931,151.06,151.04,6.6177]
[1751561368129,0.04226931,151.06,151.05,6.6175]
[1751561368429,5.52903574,151.06,151.05,6.6175]
[1751561368833,5.52903574,151.06,151.04,6.6177]
[1751561369036,0.04226931,151.06,151.04,6.6177]
[1751561369734,6.65946931,151.06,151.04,6.6177]
[1751561369930,6.65946931,151.06,151.03,6.6183]
[1751561370531,6.6176,151.05,151.02,11.5781084]
[1751561370726,0.04226931,151.06,151.02,11.5781084]
[1751561370727,4.95427192,151.06,151.02,0.04750579]
[1751561370931,5.4877059,151.05,151.02,0.04750579]
[1751561371134,6.6176,151.05,151.02,6.66620579]
[1751561373037,6.618,151.04,151.02,6.66620579]
[1751561374538,6.618,151.04,151.02,0.04750579]
[1751561375730,6.6177,151.05,151.02,6.66610579]
[1751561375928,6.6177,151.05,151.02,0.04750579]
[1751561376134,0.04226931,151.06,151.02,0.04750579]
[1751561376335,5.48424947,151.05,151.03,6.6181]
[1751561376634,0.04226931,151.06,151.03,6.6181]
[1751561376837,12.10213239,151.05,151.02,0.04750579]
[1751561377135,6.6177,151.05,151.02,0.04750579]
[1751561377332,5.48471247,151.04,151.02,0.04750579]
[1751561377537,6.6177,151.05,151.02,0.04750579]
[1751561377740,5.48471247,151.04,151.02,0.04750579]
[1751561377941,6.6177,151.05,151.02,0.04750579]
[1751561378443,5.48475843,151.04,151.02,0.04750579]
[1751561378640,6.6177,151.05,151.03,6.6184]
[1751561378841,5.48475843,151.04,151.03,6.6184]
[1751561380943,6.65946931,151.06,151.03,6.6184]
[1751561381143,5.48530945,151.05,151.03,6.6184]
[1751561381344,5.48530945,151.04,151.02,6.66620579]
[1751561381643,0.04226931,151.06,151.02,0.04750579]
[1751561381644,5.48572598,151.03,151.02,0.04750579]
[1751561383744,12.10412598,151.03,151.02,0.04750579]
[1751561386449,5.48572598,151.03,151.02,6.66630579]
[1751561386651,0.04226931,151.06,151.02,4.9595084]
[1751561386950,0.04226931,151.06,151.05,6.6175]
[1751561388747,8.9559,151.1,151.07,6.6163]
[1751561389047,5.48676392,151.09,151.08,4.91200261]
[1751561389246,6.6141,151.13,151.08,4.91200261]
[1751561389444,6.6141,151.13,151.09,6.6157]
[1751561389445,5.48349129,151.12,151.09,6.6157]
[1751561389650,5.48349129,151.11,151.08,4.91200261]
[1751561389951,6.11061626,151.14,151.04,7.13810261]
[1751561390152,5.48327998,151.13,151.08,4.91200261]
[1751561390449,5.48327998,151.12,151.08,4.91200261]
[1751561390643,5.48327998,151.11,151.09,6.6153]
[1751561390845,6.6142,151.13,151.09,6.6153]
[1751561391152,12.09531166,151.12,151.09,6.6153]
[1751561391351,5.48081166,151.11,151.09,6.6153]
[1751561391648,6.6145,151.12,151.09,6.6153]
[1751561391847,5.51590589,151.11,151.09,6.6153]
[1751561392048,6.6145,151.12,151.09,6.6153]
[1751561392251,12.13080589,151.11,151.08,6.6159]
[1751561392447,6.6149,151.11,151.08,6.6159]
[1751561395741,4.91200261,151.14,151.07,11.52850261]
[1751561395948,5.51152764,151.13,151.07,6.6165]
[1751561396151,5.51152764,151.12,151.07,6.6165]
[1751561396458,12.12682764,151.11,151.07,6.6165]
[1751561396753,6.6153,151.11,151.07,6.6165]
[1751561398249,6.6153,151.1,151.07,6.6165]
[1751561398650,4.91200261,151.12,151.07,6.6165]
[1751561398954,12.13058316,151.11,151.07,6.6165]
[1751561399256,6.6151,151.11,151.05,4.91200261]
[1751561399653,6.6146,151.12,151.07,4.91200261]
[1751561400162,6.6149,151.11,151.08,6.6159]
[1751561400460,17.94261887,151.18,151.09,4.91200261]
[1751561400654,7.88823489,151.17,151.08,47.08]
[1751561400851,5.51317724,151.16,151.1,4.91200261]
[1751561401051,5.51317724,151.15,151.1,4.91200261]
[1751561401252,6.6128,151.16,151.13,6.6139]
[1751561401455,5.51055513,151.15,151.13,6.6139]
[1751561401655,11.83200261,151.18,151.1,4.91200261]
[1751561401855,5.51055582,151.17,151.1,4.91200261]
[1751561402158,5.51055582,151.16,151.1,4.91200261]
[1751561402355,4.91200261,151.14,151.08,47.08]
[1751561402561,5.50428893,151.13,151.08,47.08]
[1751561402760,4.91200261,151.14,151.08,47.08]
[1751561402962,5.50429477,151.13,151.09,6.6155]
[1751561403262,4.91200261,151.14,151.09,6.6155]
[1751561403454,6.6147,151.12,151.09,6.6155]
[1751561403658,4.91200261,151.12,151.08,47.08]
[1751561403866,7.15730261,151.12,151.09,0.05048824]
[1751561404356,4.91200261,151.1,151.09,0.05048824]
[1751561404662,10.41638563,151.1,151.09,0.05048824]
[1751561404961,5.50438302,151.1,151.09,0.05048824]
[1751561405163,10.41638563,151.1,151.09,0.05048824]
[1751561405663,10.41638563,151.1,151.04,47.08]
[1751561405865,4.91200261,151.08,151.04,47.08]
[1751561406364,11.52830261,151.08,151.05,6.6171]
[1751561406560,4.91200261,151.08,151.05,6.6171]
[1751561406762,4.95457036,151.08,151.05,6.6171]
[1751561406956,0.04256775,151.08,151.05,6.6171]
[1751561408565,6.6167,151.07,151.05,6.6171]
[1751561409461,6.6167,151.07,151.04,53.6977]
[1751561409863,6.65886775,151.08,151.04,47.08]
[1751561410163,0.04256775,151.08,151.05,6.6172]
[1751561410567,6.6166,151.07,151.05,6.6172]
[1751561411073,4.95457036,151.08,151.04,47.08]
[1751561411260,4.91200261,151.06,151.0,51.97200261]
[1751561411667,6.6670649,151.05,151.02,6.6185]
[1751561411868,0.0492649,151.05,151.01,0.04180349]
[1751561412068,0.0492649,151.05,151.01,6.66100349]
[1751561412069,6.618,151.04,151.01,6.66100349]
[1751561412469,6.618,151.04,151.01,0.04180349]
[1751561412672,6.6670649,151.05,151.02,6.6184]
[1751561412971,0.0492649,151.05,151.02,6.6184]
[1751561413678,6.618,151.04,151.01,6.66090349]
[1751561414570,0.0492649,151.05,151.02,6.6187]
[1751561414771,0.0492649,151.05,151.01,0.04180349]
[1751561415266,6.6181,151.04,151.01,6.66080349]
[1751561418474,6.6185,151.03,151.01,0.04180349]
[1751561418978,2.3684649,151.05,151.01,0.04180349]
[1751561419178,6.6181,151.04,151.01,6.66100349]
[1751561421880,7.28046751,151.05,151.01,0.04180349]
[1751561422480,7.28046751,151.05,151.01,6.66100349]
[1751561423684,6.6186,151.03,151.01,6.66100349]
[1751561425389,7.28046751,151.05,151.01,0.04180349]
[1751561425390,6.6188,151.02,151.01,0.04180349]
[1751561425683,6.6188,151.02,150.98,571.56]
[1751561425684,4.91200261,151.04,150.91,571.8]
[1751561425881,4.91200261,151.02,150.94,4.91200261]
[1751561426082,6.6197,151.0,150.94,4.91200261]
[1751561426278,6.6197,151.0,150.94,200.77200261]
[1751561426679,6.6197,151.0,150.97,6.621]
[1751561427083,0.04522684,150.99,150.97,6.621]
[1751561427383,0.04522684,150.99,150.94,200.77200261]
[1751561428284,0.04522684,150.99,150.96,6.6212]
[1751561428579,0.04522684,150.99,150.92,47.06]
[1751561428787,0.04522684,150.99,150.93,4.91200261]
[1751561429175,0.04522684,150.99,150.92,242.94]
[1751561429381,6.6208,150.98,150.94,6.6219]
[1751561429784,0.04522684,150.99,150.93,4.91200261]
[1751561430783,0.04522684,150.99,150.95,6.6216]
[1751561430784,6.6208,150.98,150.95,6.6216]
[1751561432188,6.66552684,150.99,150.95,6.6216]
[1751561433087,6.6206,150.98,150.95,6.6216]
[1751561433689,4.91200261,150.98,150.92,47.06]
[1751561433889,4.91200261,150.96,150.92,47.06]
[1751561434089,4.91200261,150.96,150.9,4.91200261]
[1751561434293,4.91200261,150.96,150.92,6.6229]
[1751561434294,6.622,150.95,150.92,6.6229]
[1751561434590,0.05026791,150.95,150.9,4.91200261]
[1751561435482,0.05026791,150.95,150.92,6.6228]
[1751561436086,6.67236791,150.95,150.92,6.6228]
[1751561436288,0.05026791,150.95,150.91,6.6234]
[1751561436590,6.623,150.93,150.88,247.85200261]
[1751561436793,6.623,150.93,150.91,0.05018472]
[1751561437597,11.53450261,150.94,150.91,6.67378472]
[1751561438091,6.6228,150.93,150.91,6.67378472]
[1751561438484,4.91200261,150.94,150.91,6.67378472]
[1751561438890,11.53450261,150.94,150.91,6.67378472]
[1751561439086,4.91200261,150.94,150.91,0.05018472]
[1751561439293,6.623,150.93,150.91,0.05018472]
[1751561439491,0.05026791,150.95,150.91,0.05018472]
[1751561439893,6.67216791,150.95,150.91,0.05018472]
[1751561440096,6.67216791,150.95,150.92,6.623]
[1751561440497,6.6224,150.94,150.91,0.05018472]
[1751561440998,6.6224,150.94,150.91,6.67348472]
[1751561441596,6.67236791,150.95,150.92,6.6231]
[1751561441899,6.67236791,150.95,150.91,0.05018472]
[1751561441900,0.05026791,150.95,150.91,0.05018472]
[1751561442097,6.6225,150.94,150.91,6.67348472]
[1751561442297,0.05026791,150.95,150.91,0.05018472]
[1751561442596,6.67236791,150.95,150.92,6.6232]
[1751561443096,6.6224,150.94,150.91,6.67338472]
[1751561443291,0.05026791,150.95,150.91,0.05018472]
[1751561443495,0.05026791,150.95,150.94,4.91200261]
[1751561444287,0.05026791,150.95,150.94,11.53430261]
[1751561449089,4.96227052,150.95,150.91,0.05018472]
[1751561449495,4.96227052,150.95,150.91,6.67358472]
[1751561449890,4.96227052,150.95,150.91,0.05018472]
[1751561450092,11.58437052,150.95,150.92,6.6231]
[1751561450391,4.96227052,150.95,150.92,6.6231]
[1751561451193,6.6225,150.94,150.91,6.67358472]
[1751561451395,4.96227052,150.95,150.91,0.05018472]
[1751561451897,6.623,150.93,150.91,0.05018472]
[1751561452800,6.6225,150.94,150.91,6.67378472]
[1751561458407,6.6228,150.93,150.91,0.05018472]
[1751561459313,6.6225,150.94,150.91,6.67348472]
[1751561459511,4.96227052,150.95,150.91,0.05018472]
[1751561459811,6.6224,150.94,150.91,0.05018472]
[1751561460111,4.96227052,150.95,150.91,0.05018472]
[1751561460906,6.6229,150.93,150.91,0.05018472]
[1751561461210,4.91200261,150.93,150.91,0.05018472]
[1751561461513,11.53490261,150.93,150.91,0.05018472]
[1751561462724,6.6232,150.92,150.91,0.05018472]
[1751561463525,11.53490261,150.93,150.91,0.05018472]
[1751561463921,6.6232,150.92,150.91,0.05018472]
[1751561464125,4.91200261,150.93,150.91,0.05018472]
[1751561464826,6.6232,150.92,150.91,0.05018472]
[1751561467832,6.6237,150.91,150.88,6.6247]
[1751561468018,4.91200261,150.91,150.84,623.87200261]
[1751561468222,2.1925,150.94,150.84,618.96]
[1751561468428,4.91200261,150.88,150.84,618.96]
[1751561468630,4.91200261,150.88,150.84,47.04]
[1751561468932,4.96185736,150.88,150.85,6.6262]
[1751561469229,4.96185736,150.88,150.84,47.04]
[1751561469230,4.96185736,150.88,150.84,53.6665]
[1751561469422,4.96185736,150.88,150.84,6.6265]
[1751561469731,6.6256,150.87,150.84,6.6265]
[1751561470119,4.96185736,150.88,150.81,4.91200261]
[1751561470329,2.263,150.87,150.81,4.91200261]
[1751561470834,6.626,150.86,150.83,6.6271]
[1751561471232,2.263,150.87,150.81,4.91200261]
[1751561471930,4.91200261,150.84,150.74,46.98]
[1751561472136,11.53980261,150.82,150.78,6.629]
[1751561472330,11.53980261,150.82,150.74,51.89200261]
[1751561472331,4.91200261,150.82,150.74,51.89200261]
[1751561472635,0.04891263,150.81,150.74,51.89200261]
[1751561473433,6.67731263,150.81,150.74,51.89200261]
[1751561473629,6.67731263,150.81,150.74,46.98]
[1751561473630,0.04891263,150.81,150.74,46.98]
[1751561473837,4.91200261,150.8,150.74,46.98]
[1751561474426,6.629,150.79,150.76,6.6299]
[1751561474827,6.629,150.79,150.74,46.98]
[1751561475028,6.629,150.79,150.76,0.04208539]
[1751561475227,11.54060261,150.8,150.76,0.04208539]
[1751561475541,0.04891263,150.81,150.77,4.91200261]
[1751561475737,6.67721263,150.81,150.76,0.04208539]
[1751561475931,4.91200261,150.77,150.76,0.04208539]
[1751561476132,4.91200261,150.77,150.7,47.0]
[1751561476335,4.91200261,150.74,150.67,7.12470261]
[1751561476537,7.0359,150.8,150.69,4.91200261]
[1751561476733,6.6302,150.76,150.71,4.91200261]
[1751561476932,4.91200261,150.78,150.71,4.91200261]
[1751561477133,4.91200261,150.78,150.69,4.91200261]
[1751561477328,0.04329336,150.76,150.69,4.91200261]
[1751561477739,4.95529597,150.76,150.69,4.91200261]
[1751561478144,4.95529597,150.76,150.71,6.6321]
[1751561478341,4.91200261,150.74,150.67,7.12470261]
[1751561478545,0.04329336,150.76,150.62,572.46]
[1751561478844,4.91200261,150.74,150.67,4.91200261]
[1751561479135,0.04944333,150.71,150.67,4.91200261]
[1751561479343,0.04944333,150.71,150.7,6.6326]
[1751561479941,0.04944333,150.71,150.69,6.6331]
[1751561480137,0.04944333,150.71,150.66,4.91200261]
[1751561480537,0.04944333,150.71,150.68,4.91200261]
[1751561480935,0.04944333,150.71,150.66,4.91200261]
[1751561481138,0.04944333,150.71,150.65,49.188]
[1751561481139,4.96144594,150.71,150.65,49.188]
[1751561481343,4.96144594,150.71,150.65,47.0]
[1751561481644,4.96144594,150.71,150.66,6.6344]
[1751561482239,0.04944333,150.71,150.67,6.6341]
[1751561482542,4.96144594,150.71,150.67,6.6341]
[1751561482740,6.6329,150.7,150.66,6.6344]
[1751561483244,4.96144594,150.71,150.65,47.0]
[1751561483444,4.96144594,150.71,150.65,51.91200261]
[1751561484238,0.04944333,150.71,150.67,4.91200261]
[1751561484436,9.63610261,150.79,150.69,4.91200261]
[1751561484635,6.63,150.77,150.73,6.6313]
[1751561484836,9.63610261,150.79,150.72,4.91200261]
[1751561485445,4.91200261,150.77,150.7,51.93200261]
[1751561485649,4.95616514,150.77,150.7,51.93200261]
[1751561485845,11.58606514,150.77,150.73,6.6312]
[1751561486142,4.95616514,150.77,150.7,51.93200261]
[1751561486950,4.95616514,150.77,150.73,6.6315]
[1751561487544,11.58606514,150.77,150.73,6.6315]
[1751561487750,11.58606514,150.77,150.74,6.631]
[1751561487950,11.58606514,150.77,150.7,51.93200261]
[1751561488151,11.58606514,150.77,150.73,6.6312]
[1751561488445,11.58606514,150.77,150.7,51.93200261]
[1751561488749,11.58606514,150.77,150.73,6.6313]
[1751561489549,6.67406253,150.77,150.7,51.93200261]
[1751561490256,11.54230261,150.76,150.7,47.02]
[1751561490640,4.91200261,150.76,150.71,6.6321]
[1751561490845,6.6309,150.75,150.71,6.6321]
[1751561491046,4.91200261,150.74,150.7,47.02]
[1751561491244,11.54430261,150.72,150.66,47.02]
[1751561491552,0.05064784,150.71,150.66,47.02]
[1751561492152,0.05064784,150.71,150.63,47.02]
[1751561492153,4.91200261,150.69,150.63,47.02]
[1751561492347,4.96265045,150.71,150.65,4.91200261]
[1751561492547,0.05064784,150.71,150.65,4.91200261]
[1751561493349,0.05064784,150.71,150.68,6.6335]
[1751561493945,6.68314784,150.71,150.67,6.634]
[1751561494350,0.05064784,150.71,150.65,4.91200261]
[1751561494652,0.05064784,150.71,150.64,4.91200261]
[1751561495650,0.05064784,150.71,150.69,6.6333]
[1751561495854,0.05064784,150.71,150.64,4.91200261]
[1751561496658,6.6331,150.7,150.66,6.6343]
[1751561496858,4.91200261,150.7,150.63,47.02]
[1751561497054,4.91200261,150.7,150.63,51.93200261]
[1751561497256,6.6343,150.67,150.63,47.02]
[1751561497854,6.68453671,150.67,150.63,47.02]
[1751561498057,0.05023671,150.67,150.63,47.02]
[1751561498452,0.05023671,150.67,150.65,6.6348]
[1751561500459,0.05023671,150.67,150.66,6.6346]
[1751561500856,4.91200261,150.74,150.65,4.91200261]
[1751561501052,6.6326,150.71,150.65,7.18880261]
[1751561501252,4.91200261,150.72,150.65,7.18880261]
[1751561501957,4.91200261,150.68,150.63,47.02]
[1751561502659,4.91200261,150.68,150.65,6.6348]
[1751561502858,6.6336,150.69,150.65,6.6348]
[1751561503654,0.0435993,150.7,150.64,4.91200261]
[1751561504057,0.0435993,150.7,150.67,6.6339]
[1751561504761,0.0435993,150.7,150.66,4.91200261]
[1751561505256,0.0435993,150.7,150.65,0.04436031]
[1751561505461,0.0435993,150.7,150.66,4.91200261]
[1751561505662,0.0435993,150.7,150.67,6.6338]
[1751561505963,6.6765993,150.7,150.67,6.6338]
[1751561506261,0.0435993,150.7,150.68,6.6336]
[1751561506457,6.6766993,150.7,150.66,4.91200261]
[1751561506853,6.6766993,150.7,150.67,6.6339]
[1751561507058,0.0435993,150.7,150.67,6.6339]
[1751561507660,6.6764993,150.7,150.67,6.6339]
[1751561508559,0.0435993,150.7,150.68,6.6336]
[1751561509663,0.0435993,150.7,150.67,6.634]
[1751561509864,0.0435993,150.7,150.65,0.04436031]
[1751561511659,0.0435993,150.7,150.68,6.6337]
[1751561513263,51.89200261,150.76,150.68,4.91200261]
[1751561513566,51.89200261,150.76,150.7,4.91200261]
[1751561513760,6.6314,150.74,150.7,11.54450261]
[1751561513963,6.6314,150.74,150.7,4.91200261]
[1751561514361,51.89200261,150.76,150.7,4.91200261]
[1751561514362,6.6309,150.75,150.7,4.91200261]
[1751561514565,0.0445623,150.74,150.7,4.91200261]
[1751561515061,0.0445623,150.74,150.7,4.9555515]
[1751561515667,6.6756623,150.74,150.71,6.6321]
[1751561515965,0.0445623,150.74,150.7,4.9555515]
[1751561516366,6.6757623,150.74,150.71,6.6321]
[1751561517468,6.6316,150.73,150.7,6.67624889]
[1751561518166,0.0445623,150.74,150.7,0.04354889]
[1751561518669,0.0445623,150.74,150.7,4.9555515]
[1751561518861,0.0445623,150.74,150.72,6.6317]
[1751561519563,0.0445623,150.74,150.73,6.6315]
[1751561519765,0.0445623,150.74,150.7,4.9555515]
[1751561520161,0.0445623,150.74,150.72,6.6317]
[1751561520461,0.0445623,150.74,150.7,4.9555515]
[1751561520661,6.6759623,150.74,150.71,6.6322]
[1751561520869,0.0445623,150.74,150.7,0.04354889]
[1751561521065,6.6316,150.73,150.7,0.04354889]
[1751561521968,11.58786491,150.74,150.71,6.6323]
[1751561522164,4.95656491,150.74,150.71,6.6323]
[1751561522365,6.6759623,150.74,150.71,6.6323]
[1751561522757,0.0445623,150.74,150.71,6.6323]
[1751561522961,6.6757623,150.74,150.71,6.6323]
[1751561523366,0.0445623,150.74,150.71,6.6323]
[1751561524466,0.0445623,150.74,150.7,0.04354889]
[1751561525466,6.6757623,150.74,150.71,6.6321]
[1751561525967,6.6757623,150.74,150.72,6.6319]
[1751561526269,4.95656491,150.74,150.7,0.04354889]
[1751561526667,4.95656491,150.74,150.7,6.67614889]
[1751561526859,4.95656491,150.74,150.7,0.04354889]
[1751561527062,4.91200261,150.72,150.7,0.04354889]
[1751561527264,11.54420261,150.72,150.7,0.04354889]
[1751561527464,2.2367,150.73,150.7,0.04354889]
[1751561527667,0.0445623,150.74,150.7,0.04354889]
[1751561527969,6.6317,150.73,150.7,6.67614889]
[1751561528159,6.6317,150.73,150.7,0.04354889]
[1751561528562,6.6758623,150.74,150.7,0.04354889]
[1751561529060,6.6758623,150.74,150.71,6.6322]
[1751561529469,6.6315,150.73,150.7,0.04354889]
[1751561529964,6.6758623,150.74,150.7,0.04354889]
[1751561530166,0.0445623,150.74,150.7,0.04354889]
[1751561530467,4.95656491,150.74,150.7,0.04354889]
[1751561530671,0.0445623,150.74,150.7,0.04354889]
[1751561531165,6.6759623,150.74,150.71,6.6322]
[1751561531471,0.0445623,150.74,150.7,0.04354889]
[1751561531870,4.95656491,150.74,150.7,0.04354889]
[1751561532872,6.632,150.72,150.7,6.67614889]
[1751561533072,4.95656491,150.74,150.7,0.04354889]
[1751561533276,4.91200261,150.72,150.7,0.04354889]
[1751561533966,6.6324,150.71,150.7,0.04354889]
[1751561535073,12.0785323,150.71,150.7,0.04354889]
[1751561537972,12.0785323,150.71,150.64,622.2461]
[1751561537973,5.4461323,150.71,150.6,12.44038505]
[1751561538174,4.91200261,150.69,150.62,4.91200261]
[1751561538476,6.6338,150.68,150.62,4.91200261]
[1751561539067,6.6338,150.68,150.65,6.6349]
[1751561539268,10.39849653,150.67,150.61,46.94]
[1751561539477,0.04813453,150.67,150.65,0.04504178]
[1751561540880,0.04813453,150.67,150.66,6.6346]
[1751561541272,0.04813453,150.67,150.65,0.04504178]
[1751561541578,0.04813453,150.67,150.65,6.67974178]
[1751561542480,0.04813453,150.67,150.66,6.6346]
[1751561542774,0.04813453,150.67,150.65,0.04504178]
[1751561542985,6.6346,150.66,150.65,0.04504178]
[1751561543171,6.6346,150.66,150.58,2.3258]
[1751561543172,4.96013714,150.67,150.57,653.84078551]
[1751561543478,6.6358,150.64,150.57,705.69278812]
[1751561543682,4.91200261,150.63,150.57,619.94]
[1751561544075,4.91200261,150.63,150.59,6.6374]
[1751561544275,4.91200261,150.63,150.57,619.94]
[1751561544476,4.96037924,150.63,150.6,6.6369]
[1751561545281,11.59637924,150.63,150.6,6.6369]
[1751561545583,4.96037924,150.63,150.6,6.6369]
[1751561547374,4.96037924,150.63,150.59,6.6376]
[1751561547577,6.6365,150.62,150.59,6.6376]
[1751561547779,4.96037924,150.63,150.57,46.94]
[1751561548077,6.6371,150.61,150.57,46.94]
[1751561548279,4.91200261,150.61,150.57,46.94]
[1751561548476,4.91200261,150.61,150.57,0.05056833]
[1751561548779,4.91200261,150.59,150.57,0.05056833]
[1751561549281,6.6381,150.58,150.57,0.05056833]
[1751561550583,4.95664429,150.59,150.57,0.05056833]
[1751561550783,0.04464168,150.59,150.57,0.05056833]
[1751561551886,4.95664429,150.59,150.57,0.05056833]
[1751561552278,6.6381,150.58,150.57,0.05056833]
[1751561552478,4.95664429,150.59,150.53,46.96]
[1751561552683,4.91200261,150.57,150.53,46.96]
[1751561552884,4.91200261,150.57,150.5,578.13200261]
[1751561553283,4.91200261,150.57,150.49,46.96]
[1751561553482,4.91200261,150.55,150.49,46.96]
[1751561553781,11.5990177,150.55,150.49,46.96]
[1751561554084,4.9594177,150.55,150.49,46.96]
[1751561555079,4.9594177,150.55,150.44,2.4006]
[1751561555080,4.91200261,150.53,150.45,51.89200261]
[1751561555278,4.91200261,150.53,150.45,46.98]
[1751561555482,4.91200261,150.51,150.45,46.98]
[1751561555782,4.95498909,150.51,150.45,46.98]
[1751561555984,0.04298648,150.51,150.45,46.98]
[1751561556187,0.04298648,150.51,150.46,4.91200261]
[1751561556982,0.04298648,150.51,150.45,53.6237]
[1751561557184,0.04298648,150.51,150.46,4.91200261]
[1751561557380,6.643,150.47,150.46,4.91200261]
[1751561557678,4.91200261,150.5,150.45,46.98]
[1751561558078,6.6432,150.47,150.45,46.98]
[1751561558277,4.91200261,150.5,150.45,46.98]
[1751561558482,6.6425,150.49,150.45,53.6236]
[1751561559288,2.27158648,150.51,150.45,53.6236]
[1751561559488,2.27158648,150.51,150.46,6.6434]
[1751561559983,2.27158648,150.51,150.47,6.643]
[1751561560183,2.27158648,150.51,150.45,46.98]
[1751561560383,2.27158648,150.51,150.46,4.91200261]
[1751561560689,6.6419,150.5,150.47,6.643]
[1751561561586,2.27158648,150.51,150.45,46.98]
[1751561561890,7.18358909,150.51,150.45,46.98]
[1751561562793,7.18358909,150.51,150.45,53.6235]
[1751561562994,7.18358909,150.51,150.45,46.98]
[1751561563185,2.27158648,150.51,150.45,46.98]
[1751561563387,6.6426,150.48,150.45,46.98]
[1751561563993,4.91200261,150.49,150.45,46.98]
[1751561564189,2.27158648,150.51,150.41,51.87200261]
[1751561564389,4.91200261,150.47,150.41,53.6054]